Cogmind - Beta 10.2 @@@ ROGUE MODE // 2021.07.30 @ 13:50:52 Player: Wiperd Result: Destroyed by G-47 Trooper with Particle Gun Performance ------------- Evolutions (2) 1000 Regions Visited (3) 600 Robots Destroyed (16) 80 Value Destroyed (421) 421 Prototype IDs (2) 40 Alien Tech Used (0) 0 Bonus (0) 0 TOTAL SCORE: 2141 Bonus ------- None Cogmind --------- Core Integrity 0/550 Matter 265/300 Energy 100/100 System Corruption 1% Temperature Cool (9) Movement Core (200) Ox3 Location -8/Materials Parts ------- > --- POWER (2) -------- (None) > --- PROPULSION (3) --- (None) > --- UTILITY (4) ------ Small Storage Unit Medium Storage Unit > --- WEAPON (2) ------- (None) > --- INVENTORY (10) --- (None) Peak State ------------ > --- POWER ------------ Nuclear Core Light Nuclear Core > --- PROPULSION ------- Aluminum Leg Aluminum Leg Aluminum Leg > --- UTILITY ---------- Medium Storage Unit Structural Scanner Improved Terrain Scanner > --- WEAPON ----------- Spread Laser Maul > --- INVENTORY -------- Light Ion Engine Small Storage Unit [Rating: 17] Favorites ----------- Power Ion Engine Engine Ion Engine Power Core Light Nuclear Core Propulsion Aluminum Leg Treads Light Treads Leg Aluminum Leg Utility Medium Storage Unit Device Structural Scanner Storage Medium Storage Unit Protection Light Armor Plating Weapon Light Assault Rifle Energy Gun EM Pulse Gun Ballistic Gun Light Assault Rifle Impact Weapon Maul Build | -11 -10 -9 -8 ------- Run | Scr Mat Mat Mat Slots Evolved 4 | . . 2 2 Power 1 | . . . 1 Propulsion 1 | . . 1 . Utility 2 | . . 1 1 Weapon . | . . . . Parts Attached 33 | 5 13 6 9 Power 6 | 1 2 1 2 Engine 4 | 1 2 . 1 Core 2 | . . 1 1 Reactor . | . . . . Propulsion 12 | 2 5 3 2 Treads 3 | . 3 . . Leg 9 | 2 2 3 2 Wheel . | . . . . Hover . | . . . . Flight . | . . . . Utility 7 | 2 2 . 3 Device 2 | . 1 . 1 Storage 4 | 2 1 . 1 Processor . | . . . . Hackware . | . . . . Protection 1 | . . . 1 Artifact . | . . . . Weapon 8 | . 4 2 2 Energy Gun 3 | . 1 1 1 Energy Cannon . | . . . . Ballistic Gun 4 | . 3 1 . Ballistic Cannon . | . . . . Launcher . | . . . . Special Weapon . | . . . . Impact Weapon 1 | . . . 1 Slashing Weapon . | . . . . Piercing Weapon . | . . . . Special Melee Weapon . | . . . . Unidentified Prototypes . | . . . . Parts Lost 24 | . 4 8 12 Power 5 | . 1 1 3 Propulsion 8 | . 1 3 4 Utility 3 | . . . 3 Weapon 8 | . 2 4 2 Highest Loss Streak 12 | . 4 5 12 Average Slot Usage (%) 73 | . 90 79 41 Engine 8 | . 13 8 . Core 2 | . . 2 6 Treads 1 | . 3 . . Leg 22 | . 24 32 8 Device 10 | . 13 11 7 Storage 12 | . 14 11 13 Energy Gun 3 | . 6 2 1 Ballistic Gun 9 | . 14 11 . Naked Turns . | . . . . Heaviest Build 28 | 9 17 18 28 Greatest Support 40 | 20 40 30 30 Greatest Overweight (x) 7 | 2 . . 7 Average Overweight (x) . | . . . 1 Largest Inventory Capacity 10 | 6 8 8 10 Average Capacity 7 | 5 7 8 8 Most Carried 6 | 5 6 6 4 Average Carried 3 | 2 3 4 1 Final Capacity 10 | 6 8 8 10 Final Carried 6 | 5 6 3 . Class Distribution -------------------- 76% | Mutant 23% | Scavenger-Mutant Dominant Class ---------------- Mutant | -10/Materials Scavenger-Mutant | -9/Materials Mutant | -8/Materials Resources | -11 -10 -9 -8 ----------- Run | Scr Mat Mat Mat Matter Collected 429 | 242 122 65 . Remotely . | . . . . Salvage Created 558 | . 325 131 102 Parts 38 | . 27 8 3 Haulers Intercepted . | . . . . Recyclers Shooed . | . . . . Parts Field Recycled . | . . . . Retrieved Matter . | . . . . Parts Self-Destructed . | . . . . Prevented . | . . . . Kills | -11 -10 -9 -8 ------- Run | Scr Mat Mat Mat Combat Hostiles Destroyed 15 | . 10 3 2 Melee 2 | . 1 . 1 Guns 12 | . 9 3 . Classes Destroyed 5 | . 3 1 1 Watcher 1 | . 1 . . Swarmer 6 | . 6 . . Grunt 7 | . 4 2 1 Brawler 1 | . . . 1 Sentry 1 | . . 1 . Best Kill Streak 6 | . 6 1 2 Combat Bots Only 5 | . 5 1 2 Max Kills in Single Turn 1 | . 1 1 1 Gunslinging . | . . . . Exploded . | . . . . Melee 1 | . 1 . 1 Uniques/NPCs Destroyed . | . . . . Combat | -11 -10 -9 -8 -------- Run | Scr Mat Mat Mat Damage Taken 2663 | . 590 687 1386 Core 736 | . 114 69 553 Absorbed by Shields . | . . . . Core Remaining (%) 78 | 100 54 82 . Volleys Fired 72 | . 40 31 1 Largest 2 | . 2 2 1 Hottest 85 | . 60 85 65 Shots Fired 122 | . 67 54 1 Gun 122 | . 67 54 1 Cannon . | . . . . Launcher . | . . . . Special . | . . . . Kinetic 89 | . 40 49 . Thermal 6 | . . 5 1 Explosive . | . . . . Electromagnetic 27 | . 27 . . Robot Hit Streak 17 | . 7 17 3 Robot Miss Streak 5 | . 5 2 1 Penetration Max . | . . . . Secondary Targets 6 | . 5 1 . Max Gunslinging Chain 1 | . 1 1 . Shots Hit Robots 89 | . 34 45 10 Core Hits 32 | . 22 9 1 Critical Hits 1 | . 1 . . Critical Kills 1 | . 1 . . Critical Parts Destroyed . | . . . . Melee Attacks 13 | . . . 13 Impact 13 | . . . 13 Slashing . | . . . . Piercing . | . . . . Sneak Attacks . | . . . . Combat Hostiles . | . . . . Follow-up Attacks . | . . . . Damage Inflicted 887 | . 320 371 196 Guns 686 | . 309 371 6 Cannons . | . . . . Explosions . | . . . . Melee 189 | . . . 189 Ramming 12 | . 11 . 1 Kinetic 445 | . 156 289 . Thermal 88 | . . 82 6 Explosive . | . . . . Electromagnetic 153 | . 153 . . Impact 189 | . . . 189 Slashing . | . . . . Piercing . | . . . . Highest Corruption 1 | . . . 1 Average Corruption 1 | . . . 1 Corruption Purged . | . . . . Effects 3 | . . . 3 Message Errors 2 | . . . 2 Targeting Errors 1 | . . . 1 Overload Shots . | . . . . Overflow Damage 15 | . . . 15 Projectiles . | . . . . Explosions . | . . . . Melee 15 | . . . 15 Knockbacks . | . . . . Impact . | . . . . Kinetic . | . . . . Secondary . | . . . . Self-Inflicted Damage . | . . . . Shots . | . . . . Rammed 14 | . 13 . 1 Targets Rammed 14 | . 13 . 1 Kicked . | . . . . Crushed . | . . . . Highest Temperature 120 | . 120 82 40 Average Temperature 30 | . 34 26 14 Received Heat Transfer 927 | . 234 315 378 Siege Activations . | . . . . Robots Corrupted . | . . . . Combat Hostiles . | . . . . Parts Fried 1 | . . . 1 Impact Corruptions 1 | . . . 1 Robots Melted . | . . . . Combat Hostiles . | . . . . Parts Melted . | . . . . Heat Transferred 195 | . . 185 10 Parts Sabotaged . | . . . . Parts Stolen . | . . . . Parts Stripped . | . . . . Power Chain Reactions . | . . . . Missiles Intercepted . | . . . . Alert | -11 -10 -9 -8 ------- Run | Scr Mat Mat Mat Peak Influence 222 | . 222 213 156 Initial 93 | . . 93 76 Average 127 | . 155 160 87 Maximum Alert Level 1 | . 1 1 . Low Security (%) 78 | 100 49 96 100 Level 1 21 | . 50 3 . Level 2 . | . . . . Level 3 . | . . . . Level 4 . | . . . . Level 5 . | . . . . High Security . | . . . . Max Security . | . . . . Squads Dispatched 4 | . 2 2 . Investigation 1 | . . 1 . Extermination . | . . . . Reinforcement 3 | . 2 1 . Assault . | . . . . Garrison . | . . . . Intercept . | . . . . Construction Impeded . | . . . . Haulers Reinforced . | . . . . Stealth | -11 -10 -9 -8 --------- Run | Scr Mat Mat Mat Distress Signals . | . . . . Communications Jammed . | . . . . Distress Signals . | . . . . Times Spotted 38 | . 16 10 12 Peak Tracking Total 5 | . 4 4 5 Tactical Retreats 5 | . . 2 3 Traps | -11 -10 -9 -8 ------- Run | Scr Mat Mat Mat Traps Triggered 1 | . . 1 . Indirectly . | . . . . Trap Hack Attempts . | . . . . Triggered . | . . . . Disarmed . | . . . . Reprogrammed . | . . . . Reused . | . . . . Traps Extracted . | . . . . Installed . | . . . . Triggered . | . . . . Machines | -11 -10 -9 -8 ---------- Run | Scr Mat Mat Mat Machines Disabled . | . . . . Max in Single Turn . | . . . . Machines Sabotaged . | . . . . Garrisons Compromised . | . . . . Overloaded Fab Kills . | . . . . Fab Network Shutdowns . | . . . . Hacking | -11 -10 -9 -8 --------- Run | Scr Mat Mat Mat Machines Accessed 2 | . 2 . . Terminals 2 | . 2 . . Fabricators . | . . . . Repair Stations . | . . . . Recycling Units . | . . . . Scanalyzers . | . . . . Garrison Access . | . . . . Total Hacks 9 | . 9 . . Successful 3 | . 3 . . Failed 6 | . 6 . . Catastrophic . | . . . . Database Lockouts . | . . . . Manual . | . . . . Terminals 9 | . 9 . . Fabricators . | . . . . Repair Stations . | . . . . Recycling Units . | . . . . Scanalyzers . | . . . . Garrison Access . | . . . . Terminal Hacks 3 | . 3 . . Prototype ID Bank 1 | . 1 . . Dispatch Records 1 | . 1 . . Zone Layout 1 | . 1 . . Fabricator Hacks . | . . . . Repair Station Hacks . | . . . . Recycling Unit Hacks . | . . . . Scanalyzer . | . . . . Garrison Access Hacks . | . . . . Unauthorized Hacks . | . . . . Terminals . | . . . . Fabricators . | . . . . Repair Stations . | . . . . Recycling Units . | . . . . Scanalyzers . | . . . . Garrison Access . | . . . . Data Cores Recovered . | . . . . Used . | . . . . Hacking Detections 2 | . 2 . . Full Trace Events . | . . . . Feedback Events . | . . . . Feedback Blocked . | . . . . Robot Schematics Acquired . | . . . . Robots Built . | . . . . Matter . | . . . . Time . | . . . . Total Robot Build Rating . | . . . . Part Schematics Acquired . | . . . . Parts Built . | . . . . Matter . | . . . . Time . | . . . . Total Part Build Rating . | . . . . Parts Repaired . | . . . . Time . | . . . . Parts Recycled . | . . . . Recycled Matter . | . . . . Retrieved Matter . | . . . . Retrieved Components . | . . . . Parts Scanalyzed . | . . . . Part Schematics Acquired . | . . . . Parts Damaged . | . . . . Bothacking | -11 -10 -9 -8 ------------ Run | Scr Mat Mat Mat Used RIF Installer . | . . . . Robots Hacked . | . . . . Non-combat . | . . . . Combat . | . . . . Robot Hacks Applied . | . . . . Relay Couplers Released . | . . . . Robots Rewired . | . . . . Allies Hacked . | . . . . Hacks Repelled . | . . . . Allies | -11 -10 -9 -8 -------- Run | Scr Mat Mat Mat Total Allies . | . . . . Largest Group . | . . . . Highest-Rated Group . | . . . . Highest-Rated Ally . | . . . . Total Orders . | . . . . Ally Attacks . | . . . . Total Damage . | . . . . Kills . | . . . . Allies Corrupted . | . . . . Allies Melted . | . . . . Intel | -11 -10 -9 -8 ------- Run | Scr Mat Mat Mat Robot Analysis Total . | . . . . Derelict Logs Recovered . | . . . . Drone Launches . | . . . . Drone Recoveries . | . . . . Exploration | -11 -10 -9 -8 ------------- Run | Scr Mat Mat Mat Turns Passed 919 | 71 362 256 230 Spaces Moved 458 | 49 176 132 101 Core 64 | 11 . . 53 Treads 7 | . 7 . . Legs 387 | 38 169 132 48 Wheels . | . . . . Hover . | . . . . Flight . | . . . . Fastest Speed 50 | 50 120 120 120 Average Speed 131 | 117 121 120 169 Slowest Speed 400 | 150 160 120 400 Overloaded Moves . | . . . . Propulsion Burnouts . | . . . . Robots Hopped . | . . . . Cave-ins Triggered . | . . . . Exploration Rate (%) 15 | 3 37 14 9 Regions Visited 3 Branch Regions . Pre-discovered Areas . | . . . . Known Exits Taken . | . . . . Unknown Exits Taken 3 | 1 1 1 . Scrap Searched . | . . . . Spaces Dug . | . . . . Terrain Destroyed . | . . . . Melee . | . . . . Projectile . | . . . . AOE . | . . . . Terrain Rammed . | . . . . Walls Destroyed . | . . . . Machines Disabled . | . . . . Actions | -11 -10 -9 -8 --------- Run | Scr Mat Mat Mat Total 638 | 63 259 185 131 Wait 14 | . . 14 . Move 455 | 48 175 131 101 Hop . | . . . . Pick Up 29 | 9 11 3 6 Fast Attach . | . . . . Attach 31 | 5 11 6 9 Detach 5 | 1 4 . . Swap 2 | . 2 . . Drop 3 | . 3 . . Fire 72 | . 40 31 1 Melee 13 | . . . 13 Ram 1 | . . . 1 Kick . | . . . . Crush 13 | . 13 . . Escape Stasis . | . . . . Rewire . | . . . . Trap . | . . . . Miscellaneous . | . . . . Route ------- -11/Scrapyard -10/Materials (discovered 2 exits: [*Mat] / [*Min]) -9/Materials -8/Materials History --------- Turn | Location | Event 14 | -11/Scrapyard | Discovered new exit (range 15) 72 | -11/Scrapyard | Entered Materials 114 | -10/Materials | Discovered new exit (range 13) 294 | -10/Materials | Lost 4 parts (1p1n2w) 344 | -10/Materials | Build established: Mutant 420 | -10/Materials | Discovered new exit (range 9) 434 | -10/Materials | Entered another Materials area 434 | -9/Materials | Evolved 2 slots: Propulsion x1, Utility x1 658 | -9/Materials | Lost 5 parts (1p2n2w) 686 | -9/Materials | Discovered new exit (range 4) 690 | -9/Materials | Entered another Materials area 690 | -8/Materials | Evolved 2 slots: Power x1, Utility x1 821 | -8/Materials | Core integrity fell below 50% 855 | -8/Materials | Lost 12 parts (3p4n3u2w) 876 | -8/Materials | Core integrity fell below 20% 920 | -8/Materials | Destroyed by G-47 Trooper with Particle Gun Last Messages --------------- Spread Laser destroyed. Electrolysis Chamber disabled. Structural Scanner destroyed. Destroyed Imp. Heat Sink. G-47 Trooper system corrupted by crushing effect. G-47 Trooper system terminally corrupted. Lgt. Nuclear Core fried. C-30 ARC bursts open, deploying its payload. S-10 Pest unfolds itself. Acquired Aluminum Leg. Imp. Terrain Scanner destroyed. Lgt. Armor Plating destroyed. Nuclear Core destroyed. System corrupted: Maul targeting data glitched. Aluminum Leg destroyed. Maul destroyed. Slammed into G-47 Trooper. Lgt. Ion Engine destroyed. ,VKM5FAQT0LT|IEZDYXEE>XK,V K-01 Serf collects debris. Map ----- +----------------------------------------------------+ | | | ?????????????????????????????????????????? | | ?????????????????????????????????????????? | | ?????????????????????????????????????????? | | ?????????????????????????????????????????? | | ?????????????????????????????????????????? | | ?????????????????????????????????????????? | | ?????????????????????????????????????????? | | ?????????????????????????????????????????? | | ?????????????????????????????????????????? | | ?????????????????????????????????????????? | | ?????????????????????????????????????????? | | ?????????????????????????????????????????? | | ?????????????????????????????????????????? | | ?????????????????????????????????????????? | | ?????????????????????????????????????????? | | ?????????????????????????????????????????? | | ?????????????????????????????????????????? | | ?????????????????????????????????????????? | | ?????????????????????????????????????????? | | ?????????????????????????????????????????? | | ????????????###########??????????????????? | | ????????????# ] #??????????????????? | | ????????????# #??????????????????? | | ????????????# """ """ #??????????????????? | | ????????????# """@""" #??????????????????? | | ????????????# """ """ #??????????????????? | | ????????????# #??????????????????? | | ????????????# #??????????????????? | | ????????????# gs #??????????????????? | | ???##############/#####??????????????????? | | ???# #?????????????????????? | | ???# ##### #?????????????????????? | | ???# #???# #?????????????????????? | | ???# #???# +?????????????????????? | | ???# ##### #???# #?????????????????????? | | ???# #???#+#???# #?????????????????????? | | ???# #?????????#w #?????????????????????? | | ???# #?????????# ?????????????????????? | | ???# #?????????# ????????????????????? | | ???# #?????????# ????????????????????? | | ???# #?????????+ ###???????????????????? | | ???# #?????????# #?????????????????????? | | ???# #?????????? #?????????????????????? | | ???# #?????????? #?????????????????????? | | ?#?# #?????????# #?????????????????????? | | ???# #??????#??# #?????????????????????? | | ???# #?????????# #?????????????????????? | | ??## #?????????# #?????????????????????? | | ???# #?????????# #?????????????????????? | +----------------------------------------------------+ Best States ------------- Heat Dissipation 31 Energy Generation 23 Energy Capacity 300 Matter Stores 300 Matter Capacity 300 Sight Range 16 Terrain Scan Range 16 Terrain Scan Density 10 Armor Coverage 150 Evasion (%) 40 Recoil Reduction 2 Item Schematics ----------------- None Robot Schematics ------------------ None Fabricated ------------ Nothing Alien Tech Used ----------------- None Achievements -------------- Fist Fight Challenges ------------ None Game ------ Seed FusionCoordinationDissipator Manual? 0 Play Time 00:45:15 Cumulative 6.9 hours Start 2021.07.29 @ 19:55:28 End 2021.07.30 @ 13:50:52 Sessions 6 Manual Loads 0 Difficulty Rogue Special Mode None Game No. 8 Rogue 8 Adventurer 0 Explorer 0 Win Type - Total 0 Types 0/0/0/0/0/0/0/0/0 Lore% 8 Gallery% 13 Achievement% 14 Wizard Run 0 Options --------- ASCII 0 Keyboard 0 Movement Mouse Keybinds 0 Fullscreen 1 Font 18/SmallcapsGlow Map View 76x50 Tactical HUD 0 Map Filters NONE Filters NONE Steam 1 RUN: 307cb4cb-154c-423c-aff9-4c4e5874ddc1